Cogmind - Beta 16.1 @@@ ROGUE MODE // 2026.03.05 @ 12:52:14 Player: ae Result: Destroyed by H-88 Terminator with Heavy Machine Gun Performance ------------- Evolutions (8) 4000 Regions Visited (14) 2800 Robots Destroyed (64) 320 Value Destroyed (3508) 3508 Prototype IDs (40) 800 Alien Tech Used (1) 200 Bonus (3929) 3929 TOTAL SCORE: 15557 Bonus ------- High Alert Combat Kills 70 Follower Combat Kills 321 Entered DSFs 500 Registered with UFD 300 Met Optimus in HQ 500 Met Warlord at Base 500 MAIN.C Attacked Warlord 500 Warlord Defense Kills 1274 Friendly Fire -36 Cogmind --------- Core Integrity 0/1450 Matter 12/300 Energy 100/100 System Corruption 15% Temperature Cool (0) Movement Core (50) Location -2/Research Parts ------- > --- POWER (2) -------- (None) > --- PROPULSION (6) --- (None) > --- UTILITY (11) ----- (None) > --- WEAPON (4) ------- (None) > --- INVENTORY (5) ---- Xenon Bombardment Thruster Q-thruster Large Storage Unit Energy Well (350) Peak State ------------ > --- POWER ------------ Light Antimatter Reactor Light Antimatter Reactor > --- PROPULSION ------- Antigrav Array Antigrav Array Antigrav Array > --- UTILITY ---------- Experimental Power Amplifier Advanced Cryofiber Web Energy Well Enhanced Optical Array Advanced Signal Interpreter Advanced Salvage Targeting Computer Improved Transmission Jammer Hardened Medium Armor Plating Layered Light Armor Plating Hacking Suite Advanced Hacking Suite > --- WEAPON ----------- Enhanced Nova Cannon Heavy Gauss Cannon Linear Accelerator > --- INVENTORY -------- Light Antimatter Reactor Light Antimatter Reactor Large Storage Unit Advanced Targeting Computer [Rating: 146] Favorites ----------- Power Light Ion Engine Engine Light Ion Engine Power Core Neutrino Core Reactor Light Antimatter Reactor Propulsion Armored Medium Treads Treads Armored Medium Treads Leg Enhanced Biometal Leg Wheel Wheel Hover Unit Antigrav Array Flight Unit Cesium-ion Thruster Utility Small Storage Unit Device Seismic Detector Storage Small Storage Unit Processor Enhanced Optical Array Hackware Advanced Hacking Suite Protection Hardened Heavy Armor Plating Weapon Light Assault Rifle Energy Gun Gamma Rifle Energy Cannon Disruptor Cannon Ballistic Gun Light Assault Rifle Ballistic Cannon Battle Cannon Launcher Heavy Shock Bomb Launcher Special Weapon Improved Remote Datajack Piercing Weapon Makeshift Spear Build | -11 -10 -10 -7 -5 -5 -5 -5 -4 -4 -4 -4 -3 -3 -2 ------- Run | Yrd Mat Sub Scr Fac Upp Upp War Pro Fac Upp Upp Res DSF Res Slots Evolved 16 | . . . . 10 . . . . 2 . . 2 . 2 Power 1 | . . . . 1 . . . . . . . . . . Propulsion 4 | . . . . 4 . . . . . . . . . . Utility 9 | . . . . 5 . . . . . . . 2 . 2 Weapon 2 | . . . . . . . . . 2 . . . . . Parts Attached 111 | 7 . 5 1 4 2 2 12 6 17 9 6 10 10 20 Power 19 | 1 . 1 . . . . 4 1 2 1 2 . 2 5 Engine 4 | 1 . 1 . . . . 2 . . . . . . . Core 5 | . . . . . . . 2 . 2 . 1 . . . Reactor 10 | . . . . . . . . 1 . 1 1 . 2 5 Propulsion 27 | 2 . 2 1 2 . . 3 . 3 2 . 2 3 7 Treads 11 | 2 . . 1 . . . 3 . 3 2 . . . . Leg 2 | . . . . . . . . . . . . 2 . . Wheel 2 | . . 2 . . . . . . . . . . . . Hover 3 | . . . . . . . . . . . . . 3 . Flight 9 | . . . . 2 . . . . . . . . . 7 Utility 43 | 2 . . . 2 1 2 2 3 10 3 4 5 5 4 Device 16 | 1 . . . 1 . . . 2 4 3 2 2 . 1 Storage 4 | 1 . . . . . . . . 2 . . . 1 . Processor 10 | . . . . 1 1 2 . . 1 . 1 3 . 1 Hackware 3 | . . . . . . . . 1 . . . . . 2 Protection 10 | . . . . . . . 2 . 3 . 1 . 4 . Artifact . | . . . . . . . . . . . . . . . Weapon 22 | 2 . 2 . . 1 . 3 2 2 3 . 3 . 4 Energy Gun 2 | . . . . . . . 1 1 . . . . . . Energy Cannon 7 | . . . . . . . . . 2 3 . 1 . 1 Ballistic Gun 4 | 2 . 1 . . . . . . . . . . . 1 Ballistic Cannon 5 | . . 1 . . . . . . . . . 2 . 2 Launcher 2 | . . . . . 1 . 1 . . . . . . . Special Weapon 1 | . . . . . . . 1 . . . . . . . Impact Weapon . | . . . . . . . . . . . . . . . Slashing Weapon . | . . . . . . . . . . . . . . . Piercing Weapon 1 | . . . . . . . . 1 . . . . . . Special Melee Weapon . | . . . . . . . . . . . . . . . Unidentified Prototypes 4 | . . . . . . . . . . . 1 1 . 2 Corrupted Parts 5 | . . . . . . . . 2 3 . . . . . System Corruption 25 | . . . . . . . . 10 15 . . . . . Parts Lost 72 | . . 3 . . . 2 . 4 9 6 19 . 6 23 Power 14 | . . 1 . . . . . 2 1 . 5 . . 5 Propulsion 19 | . . 2 . . . 1 . 1 2 2 3 . . 8 Utility 24 | . . . . . . 1 . 1 4 2 6 . 4 6 Weapon 15 | . . . . . . . . . 2 2 5 . 2 4 Highest Loss Streak 15 | . . 3 . . . 2 . 3 4 4 9 . 4 15 To Critical Strikes . | . . . . . . . . . . . . . . . Average Backups 7 | 5 7 7 7 4 4 5 6 6 7 13 12 4 4 3 Power 1 | . 1 1 1 1 1 1 1 . 1 3 3 . . 1 Propulsion 1 | 3 4 3 3 1 1 . . . . . . . . . Utility 2 | . 1 1 1 . . . . . 3 7 6 3 2 1 Weapon 2 | . 1 1 . 2 2 3 4 5 3 . 1 1 1 . Tool/Special . | . . . . . . . . . . . . . . . Unused Backups 25 | . . 2 5 3 . . 1 . 3 1 3 2 1 4 Power 6 | . . 1 1 1 . . . . 1 . 2 . . . Propulsion 6 | . . . 1 2 . . . . . . . . . 3 Utility 7 | . . . 2 . . . . . . 1 . 2 1 1 Weapon 6 | . . 1 1 . . . 1 . 2 . 1 . . . Tool/Special . | . . . . . . . . . . . . . . . Average Slot Usage (%) 78 | . 100 100 100 45 48 51 68 68 74 85 68 31 54 58 Engine 7 | . 14 14 14 5 5 5 8 1 . . . . . . Core 1 | . . . . . . . 1 2 4 7 4 . . . Reactor 1 | . . . . . . . . 2 4 2 4 . 2 5 Treads 11 | . 28 9 14 . . 2 10 20 17 16 11 . . . Wheel 5 | . . 18 14 . . . . . . . . . . . Flight 1 | . . . . 10 11 6 3 . . . . . . 8 Device 11 | . 14 14 14 10 11 6 5 5 12 16 15 9 12 7 Storage 8 | . 14 14 14 5 5 5 5 5 6 10 6 . . 3 Processor 6 | . . . . 3 6 17 17 5 1 5 6 16 20 12 Protection 2 | . . . . . . . 3 8 7 3 2 . 2 3 Energy Cannon 2 | . . . . . . . . . 3 16 14 1 1 . Ballistic Gun 7 | . 28 26 14 5 5 5 3 . . . . . . 1 Ballistic Cannon 4 | . . 1 14 . . . . . . . . 1 2 3 Peak Build Rating 146 | 7 7 9 10 23 28 35 74 77 95 102 100 70 121 146 Average Rating 43 | 5 7 7 9 21 24 29 49 69 85 95 80 41 86 91 On Entrance 43 | . 7 7 9 10 23 28 35 74 68 89 100 19 70 111 Avg Prop Armor Cover (%) 7 | . . 12 8 20 . 3 3 4 5 6 . . 13 11 Naked Turns 24 | . . . . . . . . . . . . . . 24 Heaviest Build 96 | 13 13 13 13 11 11 11 82 84 93 94 96 13 59 85 Greatest Support 143 | 40 40 40 20 11 11 20 101 101 127 143 120 58 78 78 Greatest Overweight (x) 10 | . . 1 1 . . 1 . 1 1 1 10 4 1 2 Average Overweight (x) . | . . . . . . . . . . . . . . . Largest Inventory Capacity 15 | 8 8 8 8 8 8 8 8 8 15 15 15 5 5 5 Average Capacity 8 | 7 8 8 8 8 8 8 8 8 11 15 14 5 5 5 Most Carried 15 | 7 7 8 8 8 8 8 8 8 14 15 15 5 5 5 Average Carried 8 | 5 7 7 7 7 7 7 7 7 8 14 12 4 4 3 Final Capacity 15 | 8 8 8 8 8 8 8 8 8 15 15 5 5 5 5 Final Carried 14 | 7 7 8 8 8 8 8 8 8 14 14 5 5 3 4 Class Distribution -------------------- 49% | Mutant 17% | Scavenger-Mutant 15% | Scavenger-Tank 8% | Derelict-Mutant 4% | Commander-Mutant Dominant Class ---------------- Mutant | -10/Materials Mutant | -10/Subcaves Mutant | -7/Scraptown Mutant | -5/Factory Mutant | -5/Upper Caves Mutant | -5/Upper Caves Derelict-Mutant | -5/Warlord Scavenger-Mutant | -4/Proximity Caves Scavenger-Mutant | -4/Factory Scavenger-Tank | -4/Upper Caves Scavenger-Tank | -4/Upper Caves Mutant | -3/Research Mutant | -3/DSF Hacker-Mutant | -2/Research Resources | -11 -10 -10 -7 -5 -5 -5 -5 -4 -4 -4 -4 -3 -3 -2 ----------- Run | Yrd Mat Sub Scr Fac Upp Upp War Pro Fac Upp Upp Res DSF Res Matter Collected 1972 | 344 . 60 66 40 28 32 284 286 345 164 104 . . 219 Remotely . | . . . . . . . . . . . . . . . Salvage Created 3713 | 149 . 88 . . 112 24 533 388 1429 566 230 . . 194 Parts 146 | 6 . 3 . . 3 1 21 14 58 16 5 . . 19 Haulers Intercepted . | . . . . . . . . . . . . . . . Recyclers Shooed 1 | . . . . . . . . . 1 . . . . . Parts Field Recycled . | . . . . . . . . . . . . . . . Retrieved Matter . | . . . . . . . . . . . . . . . Parts Self-Destructed 42 | . . 26 . . 2 4 . 1 . 5 4 . . . Prevented 31 | . . . . . 4 . . 13 . 11 3 . . . Parts Restored . | . . . . . . . . . . . . . . . Kills | -11 -10 -10 -7 -5 -5 -5 -5 -4 -4 -4 -4 -3 -3 -2 ------- Run | Yrd Mat Sub Scr Fac Upp Upp War Pro Fac Upp Upp Res DSF Res Combat Hostiles Destroyed 55 | . . 2 . . 2 1 11 7 17 7 3 . . 5 Melee 3 | . . . . . . . . 2 1 . . . . . Guns 7 | . . 2 . . 1 1 1 . 1 . . . . 1 Cannons 13 | . . . . . . . . . 2 5 2 . . 4 AOE 14 | . . . . . 1 . 5 3 5 . . . . . Classes Destroyed 14 | 3 . 1 . . 1 1 3 1 4 . . . . . Worker 4 | 2 . . . . . . . . 1 . . . . 1 Builder 1 | . . . . . . . . . 1 . . . . . Tunneler 1 | 1 . . . . . . . . . . . . . . Recycler 1 | 1 . . . . . . . . . . . . . . Operator 1 | . . . . . . . . . 1 . . . . . Drone 1 | . . . . . . . . 1 . . . . . . Watcher 1 | . . . . . . . . . 1 . . . . . Swarmer 9 | . . . . . . 1 2 . 2 . . . . 4 Grunt 22 | . . . . . 2 . 3 2 7 5 3 . . . Brawler 2 | . . . . . . . 1 . 1 . . . . . Sentry 5 | . . . . . . . . . 3 2 . . . . Hunter 10 | . . . . . . . 4 2 4 . . . . . Programmer 4 | . . . . . . . 1 2 . . . . . 1 Subdweller 2 | . . 2 . . . . . . . . . . . . Best Kill Streak 7 | 2 . 2 . . 2 1 6 2 7 4 3 . . 2 Combat Bots Only 6 | . . 2 . . 2 1 6 2 6 4 3 . . 2 Max Kills in Single Turn 3 | 1 . 1 . . 1 1 2 1 3 1 1 . . 1 Gunslinging . | . . . . . . . . . . . . . . . Exploded 3 | . . . . . 1 . 2 1 3 . . . . . Melee 1 | . . . . . . . . 1 1 . . . . . Uniques/NPCs Destroyed . | . . . . . . . . . . . . . . . Combat | -11 -10 -10 -7 -5 -5 -5 -5 -4 -4 -4 -4 -3 -3 -2 -------- Run | Yrd Mat Sub Scr Fac Upp Upp War Pro Fac Upp Upp Res DSF Res Hostile Shots Fired 827 | . . 28 . 2 6 6 18 126 95 80 75 . 221 170 Missed 263 | . . 3 . 2 4 . 6 32 26 27 15 . 109 39 Hits 564 | . . 25 . . 2 6 12 94 69 53 60 . 112 131 Melee 54 | . . . . . . . 2 . 3 . . . 6 43 Projectile 510 | . . 25 . . 2 6 10 94 66 53 60 . 106 88 AOE 6 | . . . . . . . 4 . . . . . . 2 Critical Strikes 47 | . . 3 . . . . 1 2 5 4 6 . 3 23 Part Disruptions 3 | . . . . . . . . . . . . . . 3 Damage Taken 12615 | . . 636 . . 30 101 351 1500 1625 1093 1717 . 1965 3597 Core 2262 | . . 68 . . . 34 . 38 33 38 324 . 272 1455 Absorbed by Shields 609 | . . . . . . . 208 401 . . . . . . Ignored by Resistances 127 | . . . . . . . . . 66 38 23 . . . Core Remaining (%) 81 | 100 . . 72 . . . . 92 . . 65 . 79 . Volleys Fired 216 | 13 . 18 . . 2 6 30 17 67 17 6 1 . 39 Largest 4 | 2 . 2 . . 1 1 1 1 2 4 4 1 . 2 Hottest 355 | 40 . 40 . . 46 20 81 81 186 355 355 56 . 120 Shots Fired 287 | 26 . 31 . . 2 6 30 18 75 38 20 1 . 40 Gun 119 | 26 . 26 . . 1 6 8 4 31 . . . . 17 Cannon 111 | . . 5 . . . . . . 28 34 20 1 . 23 Launcher 44 | . . . . . 1 . 12 11 16 4 . . . . Special 13 | . . . . . . . 10 3 . . . . . . Kinetic 95 | 26 . 31 . . 1 6 . . . . . 1 . 30 Thermal 46 | . . . . . . . 8 3 6 11 8 . . 10 Explosive . | . . . . . . . . . . . . . . . Electromagnetic 133 | . . . . . 1 . 12 12 69 27 12 . . . Robot Hit Streak 12 | 3 . 8 . . 1 2 7 3 12 7 6 . . 4 Robot Miss Streak 8 | 1 . 2 . . 1 2 2 3 8 2 3 . . 4 Penetration Max . | . . . . . . . . . . . . . . . Secondary Targets . | . . . . . . . . . . . . . . . Capacitor 42 | . . . . . . . . . 42 . . . . . Shots Hit Robots 166 | 15 . 20 . . 1 3 21 12 44 21 10 . . 19 Core Hits 121 | 9 . 6 . . 2 3 28 13 35 11 5 . . 9 Critical Kills . | . . . . . . . . . . . . . . . Critical Parts Destroyed . | . . . . . . . . . . . . . . . Critical Strikes 2 | . . . . . . . . 1 1 . . . . . Corrupt 1 | . . . . . . . . . 1 . . . . . Impale 1 | . . . . . . . . 1 . . . . . . Melee Attacks 17 | . . . . . . . . 11 5 . 1 . . . Impact . | . . . . . . . . . . . . . . . Slashing . | . . . . . . . . . . . . . . . Piercing 17 | . . . . . . . . 11 5 . 1 . . . Sneak Attacks . | . . . . . . . . . . . . . . . Combat Hostiles . | . . . . . . . . . . . . . . . Follow-up Attacks . | . . . . . . . . . . . . . . . Damage Inflicted 7897 | 132 . 173 . . 89 23 1765 946 2677 749 465 . 69 809 Guns 1297 | 132 . 173 . . 7 23 207 28 513 . . . . 214 Cannons 1768 | . . . . . . . . . 433 456 319 . . 560 Explosions 4497 | . . . . . 82 . 1558 760 1658 293 146 . . . Melee 214 | . . . . . . . . 141 73 . . . . . Ramming 121 | . . . . . . . . 17 . . . . 69 35 Kinetic 813 | 132 . 173 . . 7 23 . . . . . . . 478 Thermal 1231 | . . . . . . . 227 98 219 137 254 . . 296 Explosive 224 | . . . . . . . . . 224 . . . . . Electromagnetic 5294 | . . . . . 82 . 1538 690 2161 612 211 . . . Impact . | . . . . . . . . . . . . . . . Slashing . | . . . . . . . . . . . . . . . Piercing 214 | . . . . . . . . 141 73 . . . . . Highest Corruption 21 | . . . . . . . . 18 21 21 21 . 4 15 Average Corruption 14 | . . . . . . . . 9 10 21 21 . 4 7 Corruption Purged 5 | . . . . . . . . 5 . . . . . . Corruption Blocked . | . . . . . . . . . . . . . . . Effects 111 | . . . . . . . . 24 22 36 21 . . 8 Message Errors 20 | . . . . . . . . 2 3 9 4 . . 2 Matter Fused 29 | . . . . . . . . 10 4 7 6 . . 2 Heat Flow Errors 16 | . . . . . . . . 3 1 7 3 . . 2 Energy Discharges 8 | . . . . . . . . 2 1 4 1 . . . Parts Fused 1 | . . . . . . . . . . . 1 . . . Data Loss (minor) 15 | . . . . . . . . 3 4 3 3 . . 2 Data Loss (major) 4 | . . . . . . . . 1 . 3 . . . . Misfires 10 | . . . . . . . . 2 6 . 2 . . . Alerts 2 | . . . . . . . . . . 1 1 . . . Weapon Failures 6 | . . . . . . . . 1 3 2 . . . . Overload Shots . | . . . . . . . . . . . . . . . Overflow Damage 178 | . . . . . . . 19 8 129 . 2 . 18 2 Projectiles 15 | . . . . . . . . . 13 . . . . 2 Explosions 145 | . . . . . . . 19 8 116 . 2 . . . Melee 18 | . . . . . . . . . . . . . 18 . Knockbacks 1 | . . . . . . . . . . . . . . 1 Impact . | . . . . . . . . . . . . . . . Kinetic 1 | . . . . . . . . . . . . . . 1 Secondary . | . . . . . . . . . . . . . . . Self-Inflicted Damage 697 | . . . . . . . 21 87 410 46 83 . 34 16 Shots 15 | . . . . . . . 1 3 6 4 1 . . . Rammed 15 | . . . . . . . . 4 . . . . 3 8 Targets Rammed 15 | . . . . . . . . 4 . . . . 3 8 Kicked . | . . . . . . . . . . . . . . . Crushed . | . . . . . . . . . . . . . . . Highest Temperature 467 | . . 446 . . . . 320 467 198 234 185 . 8 441 Average Temperature 146 | . . 193 . . . . 160 170 86 91 98 . 3 192 Received Heat Transfer 2234 | . . 1044 . . . . 13 39 138 285 211 . 504 . Effects 18 | . . 3 . . . . 3 9 . . . . . 3 Shutdowns 3 | . . 1 . . . . . 2 . . . . . . Energy Bleed 3 | . . 1 . . . . 1 1 . . . . . . Interference 5 | . . 1 . . . . 2 2 . . . . . . Matter Decay 3 | . . . . . . . . 2 . . . . . 1 Short Circuit 2 | . . . . . . . . 1 . . . . . 1 Damage (minor) 2 | . . . . . . . . 1 . . . . . 1 Siege Activations . | . . . . . . . . . . . . . . . Martial Activations . | . . . . . . . . . . . . . . . Shielding Activations . | . . . . . . . . . . . . . . . Robots Disrupted . | . . . . . . . . . . . . . . . Combat Hostiles . | . . . . . . . . . . . . . . . Robots Corrupted 19 | . . . . . . . 5 2 9 2 1 . . . Combat Hostiles 18 | . . . . . . . 5 2 8 2 1 . . . Parts Fried 24 | . . . . . . . 2 4 14 3 1 . . . Impact Corruptions 2 | . . . . . . . . . . . . . 2 . Robots Melted . | . . . . . . . . . . . . . . . Combat Hostiles . | . . . . . . . . . . . . . . . Parts Melted 4 | . . 1 . . 2 . . . . 1 . . . . Heat Transferred 1249 | . . . . . . . 346 87 235 148 211 . . 222 Parts Sabotaged . | . . . . . . . . . . . . . . . Parts Stolen . | . . . . . . . . . . . . . . . Parts Stripped . | . . . . . . . . . . . . . . . Power Chain Reactions 4 | . . . . . . . 1 1 1 . 1 . . . Alert | -11 -10 -10 -7 -5 -5 -5 -5 -4 -4 -4 -4 -3 -3 -2 ------- Run | Yrd Mat Sub Scr Fac Upp Upp War Pro Fac Upp Upp Res DSF Res Maximum Alert Level 2 | . . . . . . . . . 2 . . . . . Low Security (%) 67 | 100 100 . . 100 . . . . 10 . . 100 100 100 Level 1 17 | . . . . . . . . . 49 . . . . . Level 2 14 | . . . . . . . . . 40 . . . . . Level 3 . | . . . . . . . . . . . . . . . Level 4 . | . . . . . . . . . . . . . . . Level 5 . | . . . . . . . . . . . . . . . High Security . | . . . . . . . . . . . . . . . Max Security . | . . . . . . . . . . . . . . . Peak Influence 476 | 10 . . . 15 . . . . 476 . . 5 30 52 Initial 150 | . . . . . . . . . 150 . . . . 5 Average 132 | 1 . . . 2 . . . . 361 . . . 5 8 Influence Increases 2079 | 20 . . . 30 85 20 360 182 850 150 95 15 30 242 Destroy 0b10 Robot/C 1160 | . . . . . 40 20 300 140 340 140 80 . . 100 Destroy 0b10 Robot/NC 50 | 20 . . . . . . . 5 20 . . . . 5 Destroy Leader 142 | . . . . . . . . 30 72 10 10 . . 20 Allied During Kill 72 | . . . . . . . 60 7 . . 5 . . . Successful Hack 24 | . . . . . . . . . . . . . . 24 Disable Machine 150 | . . . . . . . . . 135 . . 15 . . Destroy Structure 151 | . . . . . . . . . 118 . . . . 33 Advance Influence 150 | . . . . . . . . . 150 . . . . . Partial Spotted 30 | . . . . 30 . . . . . . . . . . Lose Combat Pursuer 150 | . . . . . 45 . . . 15 . . . 30 60 Influence Decreases 2042 | 20 . . . 30 50 55 126 416 432 568 95 15 20 215 Entered New Map 403 | . . . . . . 8 . 234 . 156 . . . 5 Time Decay 1266 | 20 . . . 30 50 47 86 182 342 352 45 15 . 97 Lost Part 313 | . . . . . . . . . 90 60 30 . 20 113 Lost Ally 60 | . . . . . . . 40 . . . 20 . . . Squads Dispatched 17 | . . . . 3 . . . . 7 . . 1 2 4 Investigation 3 | . . . . 2 . . . . 1 . . . . . Extermination 5 | . . . . 1 . . . . 1 . . 1 . 2 Reinforcement 6 | . . . . . . . . . 2 . . . 2 2 Assault 1 | . . . . . . . . . 1 . . . . . Garrison 2 | . . . . . . . . . 2 . . . . . Intercept . | . . . . . . . . . . . . . . . Searches Triggered . | . . . . . . . . . . . . . . . Construction Impeded 1 | . . . . . . . . . 1 . . . . . Haulers Reinforced . | . . . . . . . . . . . . . . . Active Scanning Responses . | . . . . . . . . . . . . . . . Cargo Convoy Interrupts . | . . . . . . . . . . . . . . . Stealth | -11 -10 -10 -7 -5 -5 -5 -5 -4 -4 -4 -4 -3 -3 -2 --------- Run | Yrd Mat Sub Scr Fac Upp Upp War Pro Fac Upp Upp Res DSF Res Distress Signals 3 | . . . . . . . . . 2 . . . . 1 Communications Jammed . | . . . . . . . . . . . . . . . Distress Signals . | . . . . . . . . . . . . . . . Times Spotted 145 | . 1 6 . 3 12 4 30 11 24 12 6 . 13 23 Peak Tracking Total 17 | . 1 3 . 2 8 4 17 4 4 5 4 . 11 10 Tactical Retreats 9 | . . . . . 3 . . . 1 . . . 2 3 Traps | -11 -10 -10 -7 -5 -5 -5 -5 -4 -4 -4 -4 -3 -3 -2 ------- Run | Yrd Mat Sub Scr Fac Upp Upp War Pro Fac Upp Upp Res DSF Res Traps Triggered 4 | . . . . . . . . . 2 . . . 1 1 Indirectly 1 | . . . . . . . . . 1 . . . . . Trap Hack Attempts . | . . . . . . . . . . . . . . . Triggered . | . . . . . . . . . . . . . . . Disarmed . | . . . . . . . . . . . . . . . Reprogrammed . | . . . . . . . . . . . . . . . Reused 3 | . . . . . . 1 . 1 . 1 . . . . Traps Extracted . | . . . . . . . . . . . . . . . Installed 4 | . . 1 . . . 1 . 1 . 1 . . . . Triggered 3 | . . . . . . 1 . 1 . 1 . . . . Most Traps Carried 3 | . . . 3 3 3 3 2 2 1 1 . . . . Machines | -11 -10 -10 -7 -5 -5 -5 -5 -4 -4 -4 -4 -3 -3 -2 ---------- Run | Yrd Mat Sub Scr Fac Upp Upp War Pro Fac Upp Upp Res DSF Res Machines Disabled 11 | . . . . . . . . . 9 1 . 1 . . Max in Single Turn 5 | . . . . . . . . . 5 1 . 1 . . Garrison Access 1 | . . . . . . . . . 1 . . . . . Machines Repaired . | . . . . . . . . . . . . . . . Machines Dismantled . | . . . . . . . . . . . . . . . Machines Sabotaged . | . . . . . . . . . . . . . . . Overloaded Fab Kills . | . . . . . . . . . . . . . . . Hacking | -11 -10 -10 -7 -5 -5 -5 -5 -4 -4 -4 -4 -3 -3 -2 --------- Run | Yrd Mat Sub Scr Fac Upp Upp War Pro Fac Upp Upp Res DSF Res Machines Accessed 21 | . . 1 5 2 . . 3 . 1 1 . 3 . 5 Terminals 5 | . . . . . . . . . . . . 2 . 3 Fabricators 2 | . . . . 1 . . . . . . . . . 1 Repair Stations . | . . . . . . . . . . . . . . . Recycling Units 1 | . . . . 1 . . . . . . . . . . Scanalyzers 1 | . . . . . . . . . . . . . . 1 Garrison Access 2 | . . . . . . . . . 1 . . 1 . . Total Hacks 44 | . . 3 18 4 . . 7 . 1 1 . 4 . 6 Successful 34 | . . 3 18 1 . . 7 . 1 1 . 1 . 2 Failed 10 | . . . . 3 . . . . . . . 3 . 4 Catastrophic 4 | . . . . . . . . . . . . 2 . 2 Database Lockouts . | . . . . . . . . . . . . . . . Manual 4 | . . . . 2 . . . . . . . . . 2 Terminals 6 | . . . . . . . . . . . . 2 . 4 Fabricators 3 | . . . . 2 . . . . . . . . . 1 Repair Stations . | . . . . . . . . . . . . . . . Recycling Units 2 | . . . . 2 . . . . . . . . . . Scanalyzers 1 | . . . . . . . . . . . . . . 1 Garrison Access 3 | . . . . . . . . . 1 . . 2 . . Terminal Hacks 32 | . . 3 18 . . . 7 . . 1 . 1 . 2 Record 23 | . . 3 17 . . . 2 . . 1 . . . . Prototype ID Bank 4 | . . . . . . . 4 . . . . . . . Open Door 1 | . . . . . . . 1 . . . . . . . Open DSF 2 | . . . . . . . . . . . . 1 . 1 Level Access Points 1 | . . . . . . . . . . . . . . 1 Proto ID Catalog 1 | . . . 1 . . . . . . . . . . . Fabricator Hacks . | . . . . . . . . . . . . . . . Repair Station Hacks . | . . . . . . . . . . . . . . . Recycling Unit Hacks . | . . . . . . . . . . . . . . . Scanalyzer . | . . . . . . . . . . . . . . . Garrison Access Hacks 1 | . . . . . . . . . 1 . . . . . Seal Access 1 | . . . . . . . . . 1 . . . . . Unauthorized Hacks 1 | . . . . 1 . . . . . . . . . . Terminals . | . . . . . . . . . . . . . . . Fabricators . | . . . . . . . . . . . . . . . Repair Stations . | . . . . . . . . . . . . . . . Recycling Units 1 | . . . . 1 . . . . . . . . . . Fedlink 1 | . . . . 1 . . . . . . . . . . Scanalyzers . | . . . . . . . . . . . . . . . Garrison Access . | . . . . . . . . . . . . . . . Data Cores Recovered . | . . . . . . . . . . . . . . . Used . | . . . . . . . . . . . . . . . Hacking Detections 8 | . . . . 2 . . . . . . . 2 . 4 Full Trace Events 1 | . . . . 1 . . . . . . . . . . Feedback Events . | . . . . . . . . . . . . . . . Feedback Blocked . | . . . . . . . . . . . . . . . Robot Schematics Acquired . | . . . . . . . . . . . . . . . Robots Built . | . . . . . . . . . . . . . . . Authchips . | . . . . . . . . . . . . . . . Time . | . . . . . . . . . . . . . . . Total Robot Build Rating . | . . . . . . . . . . . . . . . Part Schematics Acquired . | . . . . . . . . . . . . . . . Parts Built . | . . . . . . . . . . . . . . . Authchips . | . . . . . . . . . . . . . . . Time . | . . . . . . . . . . . . . . . Total Part Build Rating . | . . . . . . . . . . . . . . . Part Studies Acquired . | . . . . . . . . . . . . . . . Parts Repaired . | . . . . . . . . . . . . . . . Time . | . . . . . . . . . . . . . . . Parts Recycled . | . . . . . . . . . . . . . . . Recycled Matter . | . . . . . . . . . . . . . . . Retrieved Matter . | . . . . . . . . . . . . . . . Retrieved Components . | . . . . . . . . . . . . . . . Parts Scanalyzed . | . . . . . . . . . . . . . . . Part Schematics Acquired . | . . . . . . . . . . . . . . . Parts Damaged . | . . . . . . . . . . . . . . . Bothacking | -11 -10 -10 -7 -5 -5 -5 -5 -4 -4 -4 -4 -3 -3 -2 ------------ Run | Yrd Mat Sub Scr Fac Upp Upp War Pro Fac Upp Upp Res DSF Res Used RIF Installer . | . . . . . . . . . . . . . . . Robots Hacked 4 | . . . . . . . 4 . . . . . . . Non-combat . | . . . . . . . . . . . . . . . Combat 4 | . . . . . . . 4 . . . . . . . Robot Hacks Applied 4 | . . . . . . . 4 . . . . . . . parse_system 4 | . . . . . . . 4 . . . . . . . Relay Couplers Released . | . . . . . . . . . . . . . . . Fabnet Peak Effective % . | . . . . . . . . . . . . . . . Robots Rewired 6 | . . . . . . . 5 . . 1 . . . . Allies Hacked . | . . . . . . . . . . . . . . . Hacks Repelled . | . . . . . . . . . . . . . . . Allies | -11 -10 -10 -7 -5 -5 -5 -5 -4 -4 -4 -4 -3 -3 -2 -------- Run | Yrd Mat Sub Scr Fac Upp Upp War Pro Fac Upp Upp Res DSF Res Total Allies 6 | . . . . . . . 5 . . 1 . . . . Largest Group 5 | . . . . . . . 5 2 . 1 1 . . . Highest-Rated Group 271 | . . . . . . . 271 113 . 30 30 . . . Highest-Rated Ally 68 | . . . . . . . 68 64 . 30 30 . . . Initial UFD Resources 58 | . . . . 38 48 48 48 51 51 51 51 55 55 58 Total Orders 2 | . . . . . . . 2 . . . . . . . FOLLOW 1 | . . . . . . . 1 . . . . . . . GUARD 1 | . . . . . . . 1 . . . . . . . Ally Attacks 56 | . . . . . . . 47 6 . . 3 . . . Total Damage 1896 | . . . . . . . 1616 189 . . 91 . . . Kills 6 | . . . . . . . 4 1 . . 1 . . . Allies Corrupted 1 | . . . . . . . 1 . . . . . . . Allies Melted . | . . . . . . . . . . . . . . . Intel | -11 -10 -10 -7 -5 -5 -5 -5 -4 -4 -4 -4 -3 -3 -2 ------- Run | Yrd Mat Sub Scr Fac Upp Upp War Pro Fac Upp Upp Res DSF Res Active Infowar (turns) 6426 | 19 130 883 2551 156 186 236 1421 62 . . 117 352 124 189 Optics 2425 | . . . . . . 161 1421 62 . . 116 352 124 189 Sensors 216 | . . . . . . . . . . . . 185 31 . Seismic 4000 | 19 130 883 2551 156 186 75 . . . . . . . . Jamming 141 | . . . . 8 . . . . . . 117 16 . . Robot Analysis Total . | . . . . . . . . . . . . . . . Derelict Logs Recovered 7 | . . 1 3 . 1 . . 1 . . 1 . . . Drone Launches . | . . . . . . . . . . . . . . . Drone Recoveries . | . . . . . . . . . . . . . . . Exploration | -11 -10 -10 -7 -5 -5 -5 -5 -4 -4 -4 -4 -3 -3 -2 ------------- Run | Yrd Mat Sub Scr Fac Upp Upp War Pro Fac Upp Upp Res DSF Res Turns Passed 9620 | 164 130 883 2551 156 186 361 1466 770 769 865 409 352 124 434 Spaces Moved 6804 | 76 61 446 2075 334 470 401 787 344 243 466 230 250 111 510 Core 221 | 7 . . . . . . . . . . 27 135 . 52 Treads 3076 | 69 61 3 803 . . 97 787 344 243 466 203 . . . Legs 165 | . . . . . . . . . . . . 115 50 . Wheels 1715 | . . 443 1272 . . . . . . . . . . . Hover 324 | . . . . . . . . . . . . . 61 263 Flight 1303 | . . . . 334 470 304 . . . . . . . 195 Fastest Speed 25 | 50 160 80 95 34 34 34 160 166 165 162 50 50 52 25 Average Speed 117 | 149 160 86 120 34 34 85 161 196 244 168 154 114 87 46 Slowest Speed 550 | 160 160 160 160 59 34 160 167 250 250 246 550 250 110 160 Overloaded Moves . | . . . . . . . . . . . . . . . Propulsion Burnouts . | . . . . . . . . . . . . . . . Robots Hopped 4 | . . . . 3 . 1 . . . . . . . . Potential Cave-ins . | . . . . . . . . . . . . . . . Cave-ins Triggered . | . . . . . . . . . . . . . . . Exploration Rate (%) 41 | 6 19 16 94 8 76 59 83 61 5 60 20 4 89 15 Regions Visited 14 Branch Regions 8 Pre-discovered Areas 3 | . . 1 1 . . . . . . . 1 . . . Known Exits Taken 2 | . . . . . . . . . . . 1 1 . . Unknown Exits Taken 11 | 1 1 1 1 1 1 1 1 1 1 1 . . . . Scrap Searched 13 | . . . 3 . 2 3 . 2 . 3 . . . . Spaces Dug 3 | . . . . . . . . . 2 . 1 . . . Terrain Destroyed 141 | . . . . . . . 4 . 107 6 15 . . 9 Melee 2 | . . . . . . . . . 1 . 1 . . . Projectile 21 | . . . . . . . . . 1 6 5 . . 9 AOE 118 | . . . . . . . 4 . 105 . 9 . . . Terrain Rammed . | . . . . . . . . . . . . . . . Walls Destroyed . | . . . . . . . . . . . . . . . Machines Disabled . | . . . . . . . . . . . . . . . Actions | -11 -10 -10 -7 -5 -5 -5 -5 -4 -4 -4 -4 -3 -3 -2 --------- Run | Yrd Mat Sub Scr Fac Upp Upp War Pro Fac Upp Upp Res DSF Res Total 8169 | 102 94 916 2136 372 493 412 961 410 381 516 268 312 135 661 Wait 836 | . 34 433 50 29 19 . 102 12 21 11 16 44 1 64 Move 6783 | 75 60 445 2074 327 469 398 786 343 242 465 229 249 111 510 Hop 4 | . . . . 3 . 1 . . . . . . . . Pick Up 71 | 7 . 7 5 3 . 2 1 6 18 5 2 4 4 7 Fast Attach 70 | 7 . 1 . 2 1 2 7 3 10 1 . 7 9 20 Attach 41 | . . 3 . 2 1 1 . 1 7 5 8 3 4 6 Detach 14 | . . . . 2 1 . 4 . 2 1 . 1 . 3 Swap 27 | . . 4 1 . . . 6 6 2 4 3 . . 1 Drop 51 | . . 4 6 4 . 1 6 6 7 4 3 3 4 3 Fire 216 | 13 . 18 . . 2 6 30 17 67 17 6 1 . 39 Melee 17 | . . . . . . . . 11 5 . 1 . . . Ram 10 | . . . . . . . . . . . . . 2 8 Kick . | . . . . . . . . . . . . . . . Crush 4 | . . . . . . . . 4 . . . . . . Escape Stasis . | . . . . . . . . . . . . . . . Rewire 21 | . . . . . . . 19 . . 2 . . . . Trap 4 | . . 1 . . . 1 . 1 . 1 . . . . Miscellaneous . | . . . . . . . . . . . . . . . Route ------- -11/Scrapyard -10/Materials -10/Subcaves (discovered 2 exits: [*Mat] / *Scr) -7/Scraptown (discovered 2 exits: *Fac x2) -5/Factory -5/Upper Caves -5/Upper Caves (discovered 2 exits: *Fac / *War) -5/Warlord -4/Proximity Caves -4/Factory (discovered 3 exits: Res / *Upp / Arm) -4/Upper Caves -4/Upper Caves -3/Research -3/DSF -2/Research (discovered 3 exits: Acc x3) History --------- Turn | Location | Event 3 | -11/Scrapyard | Discovered new exit (range 15) 165 | -11/Scrapyard | Entered Materials 166 | -10/Materials | Met a group of wandering Federalists 289 | -10/Materials | Discovered new exit (range 6) 295 | -10/Materials | Entered Subcaves 296 | -10/Subcaves | Continued accompanying wandering Federalists (6) 296 | -10/Subcaves | Approached by a straggling Scientist 298 | -10/Subcaves | A swath of the cavern ceiling suddenly collapsed 300 | -10/Subcaves | Build established: Mutant 310 | -10/Subcaves | Learned Materials non-interactive machine intel 329 | -10/Subcaves | Lost 3 allies 371 | -10/Subcaves | Discovered new exit (range 3) 429 | -10/Subcaves | A swath of the cavern ceiling suddenly collapsed 543 | -10/Subcaves | Wandering Federalist uncovered a shortcut to Scraptown 615 | -10/Subcaves | Ambushed by Subdwellers from Twisted Machinery 616 | -10/Subcaves | Shifting Twisted Machinery released Hvy. Riot Gun 646 | -10/Subcaves | Shifting Twisted Machinery released Sub. Machine Gun 714 | -10/Subcaves | Lost 3 parts (1p2n) 909 | -10/Subcaves | Visited Clippyterm 912 | -10/Subcaves | Learned location of Deep Caves (-7) 1178 | -10/Subcaves | Entered Scraptown 1298 | -7/Scraptown | Visited UFD Registry 1298 | -7/Scraptown | Registered with UFD as "Electroframe" 1323 | -7/Scraptown | Visited Cave Peace 1348 | -7/Scraptown | Visited Comm Corps 1387 | -7/Scraptown | Heard Great Nut preacher, LISTEN AND RECITE! 1426 | -7/Scraptown | Discovered new exit (range 11) 1631 | -7/Scraptown | Visited SPCMW 1650 | -7/Scraptown | Visited Assassins FH 1686 | -7/Scraptown | Visited Awakened 1700 | -7/Scraptown | Visited Artisan Demo Area 1782 | -7/Scraptown | Visited Red Mages 1856 | -7/Scraptown | Visited Research Penetration Think Tank 1894 | -7/Scraptown | Visited Modified Component R&D 1923 | -7/Scraptown | Visited Infowarlord's Domain 1950 | -7/Scraptown | Visited Junk Repository 1981 | -7/Scraptown | Visited Observation Area 2067 | -7/Scraptown | Visited Abandonware Association 2091 | -7/Scraptown | Learned abandonware demo "POISON.EXE" 2091 | -7/Scraptown | Learned abandonware demo "REBOOT5.EXE" 2093 | -7/Scraptown | Learned abandonware demo "OVRCLOCK.EXE" 2113 | -7/Scraptown | Visited Scrap Suit Storage 2145 | -7/Scraptown | Visited LU-1G1's Boring Crew 2180 | -7/Scraptown | Visited Chapter 10 2232 | -7/Scraptown | Visited Science Guys 2683 | -7/Scraptown | Scanned Subdweller tech in exchange for log data 2686 | -7/Scraptown | Learned Research trap positions 2688 | -7/Scraptown | Learned location of Extension (-4) 3513 | -7/Scraptown | Discovered new exit (range 5) 3636 | -7/Scraptown | Met Optimus 3636 | -7/Scraptown | Accepted into 0bPrime 3729 | -7/Scraptown | Entered Factory 3729 | -5/Factory | Evolved 10 slots: Power x1, Propulsion x4, Utility x5 3834 | -5/Factory | Discovered new exit (range 16) 3839 | -5/Factory | Loaded intel: 8 recycling unit locations 3885 | -5/Factory | Entered Upper Caves 3906 | -5/Upper Caves | Learned 8 Factory zone layouts 3941 | -5/Upper Caves | Encountered a Warlord checkpoint 4042 | -5/Upper Caves | Attracted the attention of an 0b10 outpost 4067 | -5/Upper Caves | Discovered new exit (range 6) 4071 | -5/Upper Caves | Entered another Upper Caves area 4077 | -5/Upper Caves | Discovered new exit (range 14) 4120 | -5/Upper Caves | Encountered a Warlord checkpoint 4408 | -5/Upper Caves | Discovered new exit (range 17) 4432 | -5/Upper Caves | Entered Warlord 4582 | -5/Warlord | Build established: Derelict-Mutant 4972 | -5/Warlord | Rebuked by Warlord 4997 | -5/Warlord | Warlord's base attacked by MAIN.C 5347 | -5/Warlord | Warlord forces counterattacked 5355 | -5/Warlord | Build established: Commander-Mutant 5506 | -5/Warlord | Spotted Striker 5528 | -5/Warlord | Allies destroyed Striker 5557 | -5/Warlord | Lost 12 allies 5649 | -5/Warlord | P-70 Sage assimilated allied 49-9XK(m) 5672 | -5/Warlord | Warlord base infiltrated, sounded retreat 5740 | -5/Warlord | Spotted Executioner 5751 | -5/Warlord | Build established: Scavenger-Mutant 5811 | -5/Warlord | Spotted Executioner 5843 | -5/Warlord | Lost 4 allies 5863 | -5/Warlord | Discovered new exit (range 10) 5898 | -5/Warlord | Entered Proximity Caves 5898 | -4/Proximity Caves | Accompanied by 2 allies 6069 | -4/Proximity Caves | P-70 Sage assimilated allied Sentinel 6a 6337 | -4/Proximity Caves | System corruption reached 10% 6368 | -4/Proximity Caves | Lost 3 parts (1p1n1u) 6434 | -4/Proximity Caves | Spotter reported a threat 6658 | -4/Proximity Caves | Discovered new exit (range 4) 6668 | -4/Proximity Caves | Entered Factory 6668 | -4/Factory | Evolved 2 slots: Weapon x2 6669 | -4/Factory | Identified exit to Armory 6670 | -4/Factory | Identified exit to Research 6727 | -4/Factory | Found Quantum Capacitor 6735 | -4/Factory | Garrison activated, responded to threat 6918 | -4/Factory | First assault squad dispatched 7192 | -4/Factory | System corruption reached 10% 7222 | -4/Factory | Lost 4 parts (3u1w) 7352 | -4/Factory | Discovered new exit (range 9) 7437 | -4/Factory | Spotted B-86 Titan 7437 | -4/Factory | Entered Upper Caves 7452 | -4/Upper Caves | Attracted the attention of an 0b10 checkpoint 7483 | -4/Upper Caves | Lost 4 parts (1n1u2w) 7648 | -4/Upper Caves | Build established: Scavenger-Tank 7781 | -4/Upper Caves | Found Alien Artifact 8003 | -4/Upper Caves | Attracted the attention of an 0b10 outpost 8283 | -4/Upper Caves | Discovered new exit (range 13) 8302 | -4/Upper Caves | Entered another Upper Caves area 8302 | -4/Upper Caves | Accompanied by 1 ally 8463 | -4/Upper Caves | Lost 3 parts (1p1u1w) 8569 | -4/Upper Caves | Spotted B-86 Titan 8592 | -4/Upper Caves | Identified Dimensional Node Initializer 8592 | -4/Upper Caves | Initialized slip node 8634 | -4/Upper Caves | Lost 9 parts (2p2n4u1w) 8644 | -4/Upper Caves | Discovered exit to Research (range 15) 8678 | -4/Upper Caves | Attacked by a delusional Derelict stockpiling parts 8711 | -4/Upper Caves | Entered Research 8711 | -3/Research | Evolved 2 slots: Utility x2 8712 | -3/Research | Loaded intel: 59 trap records 8715 | -3/Research | Lost 7 parts (2p1n1u3w) 9036 | -3/Research | Identified exit to DSF 9063 | -3/Research | Entered DSF 9088 | -3/DSF | Additional patrols routed to DSF 9142 | -3/DSF | Discovered new exit (range 20) 9171 | -3/DSF | Lost 4 parts (3u1w) 9186 | -3/DSF | Identified exit to Research 9187 | -3/DSF | Entered Research 9187 | -2/Research | Evolved 2 slots: Utility x2 9447 | -2/Research | Lost 15 parts (3p4n5u3w) 9522 | -2/Research | Identified exit to Access 9559 | -2/Research | System corruption reached 10% 9592 | -2/Research | Core integrity fell below 50% 9603 | -2/Research | Lost 8 parts (2p4n1u1w) 9618 | -2/Research | Core integrity fell below 20% 9621 | -2/Research | Destroyed by H-88 Terminator with Heavy Machine Gun Last Messages --------------- 09597_ Adv. Hacking Suite severed. 09598_ Slammed into K-01 Serf. 09604_ Slammed into C-57 Dissector. 09607_ ALERT: Potential suspicious activity detected, Programmers report to Research Zone 1F. 09612_ Slug penetrates Wall. 09614_ System corrupted: Matter fused (-6). 09614_ U-05 Engineer lays Concrete. 09614_ Slug penetrates Wave Intensifier. 09614_ U-05 Engineer lays Concrete. 09617_ Slug penetrates C-57 Dissector. 09617_ C-57 Dissector suffers critical hit (Destroy). 09617_ C-57 Dissector destroyed. 09618_ U-05 Engineer lays Concrete. 09619_ U-05 Engineer builds a Wall. 09619_ U-05 Engineer lays Concrete. 09620_ Slammed into C-57 Dissector. 09620_ Destabilizing: System corrupted (+2). 09620_ U-05 Engineer lays Concrete. 09621_ Penetrated by Slug. Map ----- +----------------------------------------------------+ | ????????????? """ + ##########???????????? | | ????????????? """ # # #???????????? | | ?????????????########## # #???????????? | | ?????????????# # # ]#???????????? | | ?????????????# # # #???????????? | | ?????????????# # # !!!#???????????? | | ?????????????# # #=] !!!#???????????? | | ?????????????# """ + += !!!#???????????? | | ?????????????# """ # # #? #????????? | | ?????????????# """ # # #? #????????? | | ?????????????# H u "##"###### ####?????? | | ?????????????# # +?????? | | ?????????????###" #### #?????? | | ????????????# u u #?????? | | ????????? """ """ #?????? | | ?????????#### """ """ +?????? | | ???????????# """ """ #?????? | | ???????????# ! """ """ #?????? | | ???????????# """ """ ##????? | | ???????????# """ """ #????? | | ??????????? """ """ ###### | | ??????????? /hh + | | ???????????? *%= ##???? | | ???????????? = #????? | | ?????????????? """ """ cc ;### ####### ###????? | | ????????????????"" """ @ ######/####??# #??????? | | ????????????????"" """ ; #??# #??????? | | ???????????????? % + #??# #??????? | | ????????????????k pp #""" #??# #??????? | | ???????????????? p #"Y #??# #??????? | | ??????????????? #""" ####/######?? | | ?????????????? # # #?? | | ??????????????? + + #?? | | ??????????????######+####### # #?? | | ???????????????????????????########### #?? | | ?????????????????????????????????????###########?? | | ?????????????????????????????????????????????????? | | ?????????????????????????????????????????????????? | | ?????????????????????????????????????????????????? | | ?????????????????????????????????????????????????? | | ?????????????????????????????????????????????????? | | ?????????????????????????????????????????????????? | | ?????????????????????????????????????????????????? | | ?????????????????????????????????????????????????? | | ?????????????????????????????????????????????????? | | ?????????????????????????????????????????????????? | | ?????????????????????????????????????????????????? | | ?????????????????????????????????????????????????? | | ?????????????????????????????????????????????????? | | ?????????????????????????????????????????????????? | +----------------------------------------------------+ Best States ------------- Heat Dissipation 81 Coolant Potential 100 Energy Generation 49 Energy Capacity 755 Matter Stores 300 Matter Capacity 300 Sight Range 22 Robot Scan Range 16 Terrain Scan Density 110 Jamming Range 14 Power Amplification 40 Base Temperature (-) 200 Armor Coverage 1200 Resistance: KI 20 Resistance: TH 10 Point Defense Rating 160 Evasion (%) 65 Targeting Accuracy 8 Melee Accuracy 16 Recoil Reduction 5 Salvage Targeting 3 Offensive Hacking 24 Defensive Hacking 11 Item Schematics ----------------- None Robot Schematics ------------------ None Fabricated ------------ Nothing Repaired ---------- Nothing Studied --------- None Alien Tech Used ----------------- Dimensional Node Initializer Achievements -------------- None Challenges ------------ None Game ------ Seed ProjectileWarlordBeamcaster Manual? 0 Play Time 01:14:11 Cumulative 142.1 hours Start 2026.03.04 @ 16:54:05 End 2026.03.05 @ 12:52:14 Sessions 3 Manual Loads 0 Difficulty Rogue Special Mode None Game No. 92 Rogue 88 Adventurer 4 Explorer 0 Win Type - Total 7 Types 7/0/0/0/0/0/0/0/0/0 Lore% 79 Gallery% 56 Achievement% 47 Wizard Run 0 Options --------- Layout 0 ASCII 0 Keyboard 1 Movement Vi Keybinds 0 Fullscreen 0 Font 16/SmallcapsGlow Map View 76x50 Zoom Use 0% Tactical HUD 1 Map Filters NONE Filters NONE Steam 1 RUN: adfa70ab-6c13-48b2-918d-8271271f58a6